[Event "RUS-ch Men Blitz 2019"]
[Site "Sochi"]
[Date "2019.10.20"]
[Round "5.28"]
[White "Chizhikov, Vladislav"]
[Black "Kurbedinov, Ramis"]
[Result "1/2-1/2"]
[ECO "C55"]
[WhiteElo "2273"]
[BlackElo "2305"]
[Annotator "NA"]
[PlyCount "49"]
[EventDate "2019.10.17"]
[EventType "swiss"]
[EventCountry "RUS"]
[SourceTitle "playchess.com"]
[Source "ChessBase"]
[SourceQuality "1"]
[TimeControl "180+2"]

1. e4 {[%emt 0:00:00]} e5 {[%emt 0:00:00]} 2. Nf3 {[%emt 0:00:01]} Nc6 {[%emt 0:00:00]} 3. Bc4 {[%emt 0:00:00]} Nf6 {[%emt 0:00:01]} 4. O-O {[%emt 0:00:02]} Nxe4 {[%emt 0:00:06]} 5. Nc3 {[%emt 0:00:01]} Nxc3 {[%emt 0:00:06]} 6. dxc3 {[%emt 0:00:02]} Be7 {[%emt 0:00:01]} 7. Qd5 {[%emt 0:00:06]} O-O {[%emt 0:00:07]} 8. Nxe5 {[%emt 0:00:01]} Nxe5 {[%emt 0:00:03]} 9. Qxe5 {[%emt 0:00:01]} Bf6 {[%emt 0:00:06]} 10. Qg3 {[%emt 0:00:02]} d5 {[%emt 0:00:03]} 11. Bd3 {[%emt 0:00:02]} Be6 {[%emt 0:00:13]} 12. Bf4 {[%emt 0:00:01]} c5 {[%emt 0:00:13]} 13. Rfe1 {[%emt 0:00:05]} c4 {[%emt 0:00:06]} 14. Bf1 {[%emt 0:00:02]} Qb6 {[%emt 0:00:10]} 15. Rab1 {[%emt 0:00:06]} Bf5 {[%emt 0:00:02]} 16. Rec1 {[%emt 0:00:32]} Rfe8 {[%emt 0:00:04]} 17. b3 {[%emt 0:00:11]} Qc6 {[%emt 0:00:18]} 18. bxc4 {[%emt 0:00:14]} dxc4 {[%emt 0:00:01]} 19. Rb4 {[%emt 0:00:02]} b5 {[%emt 0:00:07]} 20. a4 {[%emt 0:00:01]} a6 {[%emt 0:00:12]} 21. Bg5 {[%emt 0:00:10]} Be5 {[%emt 0:00:18]} 22. Bf4 {[%emt 0:00:04]} Bf6 {[%emt 0:00:04]} 23. Bg5 {[%emt 0:00:05]} Be5 {[%emt 0:00:05]} 24. Bf4 {[%emt 0:00:08]} Bf6 {[%emt 0:00:01]} 25. Bg5 {[%emt 0:00:01]} 1/2-1/2

[Event "RUS-ch Men Blitz 2019"]
[Site "Sochi"]
[Date "2019.10.17"]
[Round "5.29"]
[White "Yeritsyan, Aram"]
[Black "Savchenko, Boris"]
[Result "1-0"]
[ECO "B81"]
[WhiteElo "2271"]
[BlackElo "2581"]
[Annotator "RC"]
[PlyCount "67"]
[EventDate "2019.10.17"]
[EventType "swiss"]
[EventCountry "RUS"]
[SourceTitle "playchess.com"]
[Source "ChessBase"]
[SourceQuality "1"]
[TimeControl "180+2"]

1. e4 {[%emt 0:00:00]} c5 {[%emt 0:00:00]} 2. Nf3 e6 3. d4 {[%emt 0:00:02]} cxd4 {[%emt 0:00:01]} 4. Nxd4 {[%emt 0:00:01]} Nf6 {[%emt 0:00:01]} 5. Nc3 {[%emt 0:00:00]} d6 {[%emt 0:00:00]} 6. g4 {[%emt 0:00:05]} h6 {[%emt 0:00:02]} 7. h4 {[%emt 0:00:02]} a6 {[%emt 0:00:02]} 8. Rg1 {[%emt 0:00:02]} h5 {[%emt 0:00:05]} 9. gxh5 {[%emt 0:00:15]} Rxh5 {[%emt 0:00:02]} 10. Bg5 {[%emt 0:00:30]} Rh7 {[%emt 0:00:28]} 11. Qd2 {[%emt 0:00:06]} b5 {[%emt 0:00:07]} 12. a3 {[%emt 0:00:08]} Nbd7 {[%emt 0:00:02]} 13. O-O-O {[%emt 0:00:03]} Qc7 {[%emt 0:00:02]} 14. f4 {[%emt 0:00:15]} Bb7 {[%emt 0:00:05]} 15. Bg2 {[%emt 0:00:08]} Rc8 {[%emt 0:00:09]} 16. Rge1 {[%emt 0:00:29]} Nb6 {[%emt 0:00:15]} 17. e5 {[%emt 0:00:32]} dxe5 {[%emt 0:00:04]} 18. fxe5 {[%emt 0:00:01]} Nfd7 {[%emt 0:00:31]} 19. Bxb7 {[%emt 0:00:23]} Qxb7 {[%emt 0:00:01]} 20. Qd3 {[%emt 0:00:09]} g6 {[%emt 0:00:06]} 21. Nxe6 {[%emt 0:00:10]} Rxc3 {[%emt 0:00:19]} 22. bxc3 {[%emt 0:00:06]} Bxa3+ {[%emt 0:00:01]} 23. Kb1 {[%emt 0:00:02]} fxe6 {[%emt 0:00:02]} 24. Qxg6+ {[%emt 0:00:05]} Rf7 {[%emt 0:00:01]} 25. Qxe6+ {[%emt 0:00:04]} Be7 {[%emt 0:00:06]} 26. Rf1 {[%emt 0:00:03]} Nxe5 {[%emt 0:00:17]} 27. Qxe5 {[%emt 0:00:02]} Nc4 {[%emt 0:00:17]} 28. Qh8+ {[%emt 0:00:01]} Rf8 {[%emt 0:00:01]} 29. Rxf8+ {[%emt 0:00:03]} Bxf8 {[%emt 0:00:00]} 30. Rd8+ {[%emt 0:00:01]} Kf7 {[%emt 0:00:01]} 31. Rxf8+ {[%emt 0:00:02]} Ke6 {[%emt 0:00:01]} 32. Qf6+ {[%emt 0:00:04]} Kd5 {[%emt 0:00:00]} 33. Rd8+ {[%emt 0:00:02]} Ke4 {[%emt 0:00:01]} 34. Qf4# {[%emt 0:00:01]} 1-0

[Event "RUS-ch Men Blitz 2019"]
[Site "Sochi"]
[Date "2019.10.17"]
[Round "6.6"]
[White "Tsydypov, Zhamsaran"]
[Black "Papin, Vasily"]
[Result "1-0"]
[ECO "B40"]
[WhiteElo "2553"]
[BlackElo "2481"]
[Annotator "ChessBase"]
[PlyCount "49"]
[EventDate "2019.10.17"]
[EventType "swiss"]
[EventCountry "RUS"]
[SourceTitle "playchess.com"]
[Source "ChessBase"]
[SourceQuality "1"]
[TimeControl "180+2"]

1. e4 {[%emt 0:00:00]} c5 {[%emt 0:00:00]} 2. Nf3 {[%emt 0:00:00]} e6 {[%emt 0:00:00]} 3. b3 {[%emt 0:00:02]} b6 {[%emt 0:00:01]} 4. Bb2 {[%emt 0:00:01]} Bb7 {[%emt 0:00:01]} 5. Nc3 {[%emt 0:00:01]} Nc6 {[%emt 0:00:06]} 6. d4 {[%emt 0:00:03]} cxd4 {[%emt 0:00:08]} 7. Nxd4 {[%emt 0:00:01]} a6 {[%emt 0:00:22]} 8. Nxc6 {[%emt 0:00:11]} Bxc6 {[%emt 0:00:01]} 9. Bd3 {[%emt 0:00:00]} d6 {[%emt 0:00:18]} 10. Qe2 {[%emt 0:00:08]} b5 {[%emt 0:00:00]} 11. a4 {[%emt 0:00:22]} b4 {[%emt 0:00:05]} 12. Nd5 {[%emt 0:00:04]} a5 {[%emt 0:01:02]} 13. Bb5 {[%emt 0:00:09]} Ne7 {[%emt 0:00:12]} 14. Nxe7 {[%emt 0:00:05]} Bxb5 {[%emt 0:00:01]} 15. Qxb5+ {[%emt 0:00:03]} Kxe7 {[%emt 0:00:02]} 16. O-O-O {[%emt 0:00:17]} Qc7 {[%emt 0:00:00]} 17. Rd2 {[%emt 0:00:06]} f6 {[%emt 0:00:09]} 18. Rhd1 {[%emt 0:00:06]} Kf7 {[%emt 0:00:01]} 19. e5 {[%emt 0:00:00]} d5 {[%emt 0:00:03]} 20. Rxd5 {[%emt 0:00:01]} exd5 {[%emt 0:00:15]} 21. Qxd5+ {[%emt 0:00:02]} Kg6 {[%emt 0:00:01]} 22. Qxa8 {[%emt 0:00:07]} f5 {[%emt 0:00:08]} 23. Qe8+ {[%emt 0:00:35]} Kh6 {[%emt 0:00:06]} 24. Qe6+ {[%emt 0:00:05]} g6 {[%emt 0:00:03]} 25. Qf6 {[%emt 0:00:02]} 1-0

[Event "RUS-ch Men Blitz 2019"]
[Site "Sochi"]
[Date "2019.10.17"]
[Round "6.7"]
[White "Shimanov, Aleksandr"]
[Black "Vastrukhin, Oleg"]
[Result "1-0"]
[ECO "A40"]
[WhiteElo "2587"]
[BlackElo "2428"]
[Annotator "ChessBase"]
[PlyCount "71"]
[EventDate "2019.10.17"]
[EventType "swiss"]
[EventCountry "RUS"]
[SourceTitle "playchess.com"]
[Source "ChessBase"]
[SourceQuality "1"]
[TimeControl "180+2"]

1. d4 {[%emt 0:00:00]} g6 {[%emt 0:00:00]} 2. Nf3 {[%emt 0:00:02]} Bg7 {[%emt 0:00:00]} 3. c3 {[%emt 0:00:01]} d6 {[%emt 0:00:04]} 4. Bg5 {[%emt 0:00:03]} f5 {[%emt 0:00:06]} 5. Nbd2 {[%emt 0:00:03]} Nf6 {[%emt 0:00:07]} 6. e3 {[%emt 0:00:04]} O-O {[%emt 0:00:08]} 7. Bc4+ {[%emt 0:00:05]} e6 {[%emt 0:00:03]} 8. e4 {[%emt 0:00:23]} h6 {[%emt 0:00:25]} 9. Bxf6 {[%emt 0:00:02]} Qxf6 {[%emt 0:00:10]} 10. Qe2 {[%emt 0:00:05]} Kh8 {[%emt 0:00:15]} 11. e5 {[%emt 0:00:52]} Qf7 {[%emt 0:00:01]} 12. h4 {[%emt 0:00:07]} d5 {[%emt 0:00:26]} 13. Bd3 {[%emt 0:00:02]} Qe7 {[%emt 0:00:06]} 14. g3 {[%emt 0:00:29]} c5 {[%emt 0:00:02]} 15. dxc5 {[%emt 0:00:03]} Nd7 {[%emt 0:00:15]} 16. b4 {[%emt 0:00:07]} a5 {[%emt 0:00:03]} 17. a3 {[%emt 0:00:04]} Nb8 {[%emt 0:00:34]} 18. Nd4 {[%emt 0:00:04]} Nc6 {[%emt 0:00:21]} 19. Nxc6 {[%emt 0:00:02]} bxc6 {[%emt 0:00:00]} 20. f4 {[%emt 0:00:02]} d4 {[%emt 0:00:09]} 21. cxd4 {[%emt 0:00:06]} axb4 {[%emt 0:00:01]} 22. a4 {[%emt 0:00:04]} Qd7 {[%emt 0:00:09]} 23. Nf3 {[%emt 0:00:14]} Rd8 {[%emt 0:00:07]} 24. Kf2 {[%emt 0:00:04]} Bf8 {[%emt 0:00:09]} 25. Bc4 {[%emt 0:00:02]} h5 {[%emt 0:00:04]} 26. Rhb1 {[%emt 0:00:02]} Rb8 {[%emt 0:00:02]} 27. a5 {[%emt 0:00:01]} Qa7 {[%emt 0:00:02]} 28. a6 {[%emt 0:00:02]} Rd7 {[%emt 0:00:04]} 29. Kg2 {[%emt 0:00:06]} Rd8 {[%emt 0:00:02]} 30. Ra4 {[%emt 0:00:03]} b3 {[%emt 0:00:01]} 31. Rxb3 {[%emt 0:00:03]} Rxb3 {[%emt 0:00:01]} 32. Bxb3 {[%emt 0:00:01]} Bd7 {[%emt 0:00:01]} 33. Qa2 {[%emt 0:00:08]} Rb8 {[%emt 0:00:02]} 34. Bxe6 {[%emt 0:00:04]} Bxe6 {[%emt 0:00:04]} 35. Qxe6 {[%emt 0:00:02]} Rb2+ {[%emt 0:00:01]} 36. Kh3 {[%emt 0:00:00]} 1-0

[Event "RUS-ch Men Blitz 2019"]
[Site "Sochi"]
[Date "2019.10.17"]
[Round "6.9"]
[White "Kokarev, Dmitry"]
[Black "Ulybin, Mikhail"]
[Result "1-0"]
[ECO "C14"]
[WhiteElo "2593"]
[BlackElo "2455"]
[Annotator "RC"]
[PlyCount "107"]
[EventDate "2019.10.17"]
[EventType "swiss"]
[EventCountry "RUS"]
[SourceTitle "playchess.com"]
[Source "ChessBase"]
[SourceQuality "1"]
[TimeControl "180+2"]

1. e4 {[%emt 0:00:00]} e6 {[%emt 0:00:00]} 2. Nc3 {[%emt 0:00:01]} d5 {[%emt 0:00:04]} 3. d4 {[%emt 0:00:01]} Nf6 {[%emt 0:00:03]} 4. Bg5 {[%emt 0:00:02]} Be7 {[%emt 0:00:05]} 5. e5 {[%emt 0:00:01]} Nfd7 {[%emt 0:00:03]} 6. Bxe7 {[%emt 0:00:03]} Qxe7 {[%emt 0:00:03]} 7. f4 {[%emt 0:00:01]} O-O {[%emt 0:00:06]} 8. Qd2 {[%emt 0:00:02]} c5 {[%emt 0:00:06]} 9. Nf3 {[%emt 0:00:02]} Nc6 {[%emt 0:00:03]} 10. g3 {[%emt 0:00:05]} cxd4 {[%emt 0:00:37]} 11. Nxd4 {[%emt 0:00:05]} Nc5 {[%emt 0:00:10]} 12. Bg2 {[%emt 0:00:12]} Bd7 {[%emt 0:00:06]} 13. O-O {[%emt 0:00:08]} Rac8 {[%emt 0:00:35]} 14. Rad1 {[%emt 0:00:28]} a6 {[%emt 0:00:02]} 15. Nce2 {[%emt 0:00:07]} Rfd8 {[%emt 0:00:07]} 16. c3 {[%emt 0:00:06]} Na5 {[%emt 0:00:19]} 17. b3 {[%emt 0:00:12]} b5 {[%emt 0:00:13]} 18. Qe3 {[%emt 0:00:07]} Nc6 {[%emt 0:00:14]} 19. g4 {[%emt 0:00:03]} Ne4 {[%emt 0:00:10]} 20. h3 {[%emt 0:00:17]} Qc5 {[%emt 0:00:07]} 21. Rf3 {[%emt 0:00:19]} b4 {[%emt 0:00:11]} 22. Nxc6 {[%emt 0:00:07]} Rxc6 {[%emt 0:00:03]} 23. Qxc5 {[%emt 0:00:04]} Rxc5 {[%emt 0:00:02]} 24. cxb4 {[%emt 0:00:18]} Rc2 {[%emt 0:00:02]} 25. Nd4 {[%emt 0:00:05]} Rxa2 {[%emt 0:00:02]} 26. Rc1 {[%emt 0:00:03]} g6 {[%emt 0:00:06]} 27. Re3 {[%emt 0:00:05]} Bb5 {[%emt 0:00:04]} 28. Rc7 {[%emt 0:00:05]} Rd2 {[%emt 0:00:02]} 29. Nf3 {[%emt 0:00:06]} Rb2 {[%emt 0:00:03]} 30. h4 {[%emt 0:00:10]} h6 {[%emt 0:00:02]} 31. h5 {[%emt 0:00:08]} gxh5 {[%emt 0:00:03]} 32. gxh5 {[%emt 0:00:01]} Kf8 {[%emt 0:00:04]} 33. f5 {[%emt 0:00:01]} exf5 {[%emt 0:00:02]} 34. Nd4 {[%emt 0:00:01]} Bd7 {[%emt 0:00:02]} 35. Bh3 {[%emt 0:00:09]} Be6 {[%emt 0:00:04]} 36. Bxf5 {[%emt 0:00:03]} Rb1+ {[%emt 0:00:02]} 37. Kg2 {[%emt 0:00:02]} Rb2+ {[%emt 0:00:01]} 38. Kh3 {[%emt 0:00:02]} Ng5+ {[%emt 0:00:02]} 39. Kh4 {[%emt 0:00:03]} Rh2+ {[%emt 0:00:03]} 40. Kg3 {[%emt 0:00:01]} Rxh5 {[%emt 0:00:02]} 41. Rec3 {[%emt 0:00:08]} Bxf5 {[%emt 0:00:03]} 42. Nxf5 {[%emt 0:00:01]} Rh3+ {[%emt 0:00:01]} 43. Kg4 {[%emt 0:00:01]} Rxc3 {[%emt 0:00:02]} 44. Rxc3 {[%emt 0:00:01]} Re8 {[%emt 0:00:01]} 45. Rc6 {[%emt 0:00:02]} Rxe5 {[%emt 0:00:02]} 46. Rxh6 {[%emt 0:00:01]} f6 {[%emt 0:00:03]} 47. Rxf6+ {[%emt 0:00:02]} Nf7 {[%emt 0:00:01]} 48. Rxa6 {[%emt 0:00:03]} Ke8 {[%emt 0:00:03]} 49. Ra7 {[%emt 0:00:03]} Nd8 {[%emt 0:00:03]} 50. b5 {[%emt 0:00:02]} Re4+ {[%emt 0:00:02]} 51. Kg5 {[%emt 0:00:02]} Nf7+ {[%emt 0:00:02]} 52. Kf6 {[%emt 0:00:01]} Ne5 {[%emt 0:00:03]} 53. Re7+ {[%emt 0:00:02]} Kd8 {[%emt 0:00:01]} 54. Rxe5 {[%emt 0:00:01]} 1-0

[Event "RUS-ch Men Blitz 2019"]
[Site "Sochi"]
[Date "2019.10.17"]
[Round "6.11"]
[White "Nozdrachev, Vladislav"]
[Black "Glek, Igor"]
[Result "1-0"]
[ECO "B30"]
[WhiteElo "2494"]
[BlackElo "2467"]
[Annotator "ChessBase"]
[PlyCount "85"]
[EventDate "2019.10.17"]
[EventType "swiss"]
[EventCountry "RUS"]
[SourceTitle "playchess.com"]
[Source "ChessBase"]
[SourceQuality "1"]
[TimeControl "180+2"]

1. e4 {[%emt 0:00:00]} c5 {[%emt 0:00:00]} 2. Nf3 {[%emt 0:00:02]} Nc6 {[%emt 0:00:00]} 3. Bb5 {[%emt 0:00:00]} e6 {[%emt 0:00:02]} 4. Bxc6 {[%emt 0:00:02]} bxc6 {[%emt 0:00:01]} 5. d3 {[%emt 0:00:02]} d6 {[%emt 0:00:11]} 6. e5 {[%emt 0:00:03]} Ne7 {[%emt 0:00:01]} 7. exd6 {[%emt 0:00:03]} Nf5 {[%emt 0:00:01]} 8. Nbd2 {[%emt 0:00:05]} Bxd6 {[%emt 0:00:12]} 9. O-O {[%emt 0:00:05]} O-O {[%emt 0:00:02]} 10. b3 {[%emt 0:00:01]} e5 {[%emt 0:00:02]} 11. Ne4 {[%emt 0:00:09]} Nd4 {[%emt 0:00:03]} 12. c3 {[%emt 0:00:12]} Nxf3+ {[%emt 0:00:11]} 13. Qxf3 {[%emt 0:00:02]} f5 {[%emt 0:00:20]} 14. Nxd6 {[%emt 0:00:07]} Qxd6 {[%emt 0:00:01]} 15. Ba3 {[%emt 0:00:01]} Ba6 {[%emt 0:00:29]} 16. c4 {[%emt 0:00:09]} Rad8 {[%emt 0:00:07]} 17. Qe3 {[%emt 0:00:03]} f4 {[%emt 0:00:16]} 18. Qxc5 {[%emt 0:00:05]} Qxc5 {[%emt 0:00:01]} 19. Bxc5 Rf7 20. Rfe1 {[%emt 0:00:12]} Rxd3 {[%emt 0:00:15]} 21. Rxe5 {[%emt 0:00:01]} h6 {[%emt 0:00:01]} 22. Re6 {[%emt 0:00:25]} Rfd7 {[%emt 0:00:06]} 23. h4 {[%emt 0:00:13]} Rd1+ {[%emt 0:00:19]} 24. Rxd1 {[%emt 0:00:01]} Rxd1+ {[%emt 0:00:01]} 25. Kh2 {[%emt 0:00:01]} Ra1 {[%emt 0:00:09]} 26. a4 {[%emt 0:00:09]} Rb1 {[%emt 0:00:02]} 27. Rxc6 {[%emt 0:00:17]} Bb7 {[%emt 0:00:01]} 28. Rc7 {[%emt 0:00:01]} Rxb3 {[%emt 0:00:02]} 29. Bd4 {[%emt 0:00:06]} g5 {[%emt 0:00:13]} 30. hxg5 {[%emt 0:00:01]} hxg5 {[%emt 0:00:00]} 31. Rg7+ {[%emt 0:00:01]} Kf8 {[%emt 0:00:03]} 32. Rxg5 {[%emt 0:00:02]} Ke7 {[%emt 0:00:01]} 33. Bxa7 {[%emt 0:00:04]} f3 {[%emt 0:00:01]} 34. g4 {[%emt 0:00:02]} Kf6 {[%emt 0:00:07]} 35. Rf5+ {[%emt 0:00:01]} Ke6 {[%emt 0:00:01]} 36. Kg3 {[%emt 0:00:06]} Bc6 {[%emt 0:00:06]} 37. a5 {[%emt 0:00:01]} Rc3 {[%emt 0:00:06]} 38. Rf6+ {[%emt 0:00:17]} Kd7 {[%emt 0:00:03]} 39. c5 {[%emt 0:00:06]} Be4 {[%emt 0:00:03]} 40. a6 {[%emt 0:00:05]} Ra3 {[%emt 0:00:01]} 41. Rd6+ {[%emt 0:00:03]} Ke7 {[%emt 0:00:01]} 42. Bb6 {[%emt 0:00:00]} Kf7 {[%emt 0:00:05]} 43. a7 {[%emt 0:00:01]} 1-0

[Event "RUS-ch Men Blitz 2019"]
[Site "Sochi"]
[Date "2019.10.17"]
[Round "6.14"]
[White "Shubin, Kirill"]
[Black "Antipov, Mikhail Al."]
[Result "1-0"]
[ECO "B30"]
[WhiteElo "2416"]
[BlackElo "2567"]
[Annotator "ChessBase"]
[PlyCount "79"]
[EventDate "2019.10.17"]
[EventType "swiss"]
[EventCountry "RUS"]
[SourceTitle "playchess.com"]
[Source "ChessBase"]
[SourceQuality "1"]
[TimeControl "180+2"]

1. e4 {[%emt 0:00:00]} c5 {[%emt 0:00:00]} 2. Nf3 {[%emt 0:00:00]} Nc6 {[%emt 0:00:00]} 3. Bb5 {[%emt 0:00:01]} d6 {[%emt 0:00:00]} 4. d4 {[%emt 0:00:01]} cxd4 {[%emt 0:00:01]} 5. Qxd4 {[%emt 0:00:01]} Bd7 {[%emt 0:00:02]} 6. Qd3 {[%emt 0:00:00]} h6 {[%emt 0:00:04]} 7. c4 {[%emt 0:00:05]} a6 {[%emt 0:00:18]} 8. Bxc6 {[%emt 0:00:02]} Bxc6 {[%emt 0:00:06]} 9. Nc3 {[%emt 0:00:02]} Nf6 {[%emt 0:00:05]} 10. O-O {[%emt 0:00:02]} e6 {[%emt 0:00:03]} 11. Bf4 {[%emt 0:00:10]} Nh5 {[%emt 0:00:43]} 12. Be3 {[%emt 0:00:06]} Be7 {[%emt 0:00:01]} 13. Rfd1 {[%emt 0:00:06]} O-O {[%emt 0:00:04]} 14. Nd4 {[%emt 0:00:05]} Be8 {[%emt 0:00:27]} 15. Rac1 {[%emt 0:00:08]} Qc7 {[%emt 0:00:11]} 16. Qe2 {[%emt 0:00:25]} Nf6 {[%emt 0:00:01]} 17. b3 {[%emt 0:00:01]} Nd7 {[%emt 0:00:09]} 18. Bf4 {[%emt 0:00:14]} Ne5 {[%emt 0:00:08]} 19. Bg3 {[%emt 0:00:02]} Rd8 {[%emt 0:00:06]} 20. Rc2 {[%emt 0:00:31]} Qa5 {[%emt 0:00:16]} 21. f4 {[%emt 0:00:28]} Nc6 {[%emt 0:00:01]} 22. Bf2 {[%emt 0:00:01]} Bf6 {[%emt 0:00:12]} 23. Kh1 {[%emt 0:00:11]} Bd7 {[%emt 0:00:18]} 24. Qf3 {[%emt 0:00:20]} Bc8 {[%emt 0:00:15]} 25. Rcd2 {[%emt 0:00:09]} Ne7 {[%emt 0:00:07]} 26. Nce2 {[%emt 0:00:14]} Ng6 {[%emt 0:00:01]} 27. f5 {[%emt 0:00:10]} Ne5 {[%emt 0:00:04]} 28. Qg3 {[%emt 0:00:01]} exf5 {[%emt 0:00:05]} 29. Nxf5 {[%emt 0:00:04]} Bxf5 {[%emt 0:00:01]} 30. exf5 {[%emt 0:00:01]} Nc6 {[%emt 0:00:03]} 31. Qg4 {[%emt 0:00:07]} Ne7 {[%emt 0:00:05]} 32. Ng3 {[%emt 0:00:03]} d5 {[%emt 0:00:03]} 33. Nh5 {[%emt 0:00:02]} Bc3 {[%emt 0:00:02]} 34. Bd4 {[%emt 0:00:04]} Bxd4 {[%emt 0:00:01]} 35. Rxd4 {[%emt 0:00:01]} g6 {[%emt 0:00:02]} 36. fxg6 {[%emt 0:00:04]} fxg6 {[%emt 0:00:03]} 37. Qe6+ {[%emt 0:00:01]} Rf7 {[%emt 0:00:02]} 38. Rf4 {[%emt 0:00:03]} Rdf8 {[%emt 0:00:02]} 39. Rdf1 {[%emt 0:00:01]} Kh8 {[%emt 0:00:03]} 40. Rxf7 {[%emt 0:00:02]} 1-0

[Event "RUS-ch Men Blitz 2019"]
[Site "Sochi"]
[Date "2019.10.17"]
[Round "6.15"]
[White "Popov, Valerij"]
[Black "Sysolyatin, Evgeny"]
[Result "1-0"]
[ECO "D35"]
[WhiteElo "2535"]
[BlackElo "2271"]
[Annotator "ChessBase"]
[PlyCount "57"]
[EventDate "2019.10.17"]
[EventType "swiss"]
[EventCountry "RUS"]
[SourceTitle "playchess.com"]
[Source "ChessBase"]
[SourceQuality "1"]
[TimeControl "180+2"]

1. c4 {[%emt 0:00:00]} Nf6 {[%emt 0:00:05]} 2. Nc3 {[%emt 0:00:04]} e6 {[%emt 0:00:01]} 3. d4 {[%emt 0:00:06]} d5 {[%emt 0:00:01]} 4. cxd5 {[%emt 0:00:01]} exd5 {[%emt 0:00:01]} 5. Bg5 {[%emt 0:00:01]} Nbd7 {[%emt 0:00:07]} 6. Qc2 {[%emt 0:00:06]} c6 {[%emt 0:00:02]} 7. e3 {[%emt 0:00:01]} Bd6 {[%emt 0:00:06]} 8. Bd3 {[%emt 0:00:02]} Nf8 {[%emt 0:00:01]} 9. Nf3 {[%emt 0:00:06]} Ne6 {[%emt 0:00:01]} 10. Bh4 {[%emt 0:00:01]} h6 {[%emt 0:00:01]} 11. Rb1 {[%emt 0:00:11]} a5 {[%emt 0:00:04]} 12. a3 {[%emt 0:00:05]} Qe7 {[%emt 0:00:08]} 13. O-O {[%emt 0:00:14]} O-O {[%emt 0:00:14]} 14. Rfe1 {[%emt 0:00:14]} g5 {[%emt 0:00:03]} 15. Bg3 {[%emt 0:00:03]} Bxg3 {[%emt 0:00:02]} 16. hxg3 {[%emt 0:00:01]} Qd6 {[%emt 0:00:15]} 17. b4 {[%emt 0:00:10]} axb4 {[%emt 0:00:02]} 18. axb4 {[%emt 0:00:01]} Kg7 {[%emt 0:00:35]} 19. Rec1 {[%emt 0:00:13]} Re8 {[%emt 0:00:13]} 20. Na4 {[%emt 0:00:32]} Nf8 {[%emt 0:00:55]} 21. b5 {[%emt 0:00:09]} Be6 {[%emt 0:00:29]} 22. Qc5 {[%emt 0:00:30]} Qd8 {[%emt 0:00:09]} 23. Qb4 {[%emt 0:00:06]} Ne4 {[%emt 0:00:03]} 24. bxc6 {[%emt 0:00:10]} bxc6 {[%emt 0:00:02]} 25. Ne5 {[%emt 0:00:01]} Qf6 {[%emt 0:00:04]} 26. Bxe4 {[%emt 0:00:05]} dxe4 {[%emt 0:00:02]} 27. Rxc6 {[%emt 0:00:12]} Ng6 {[%emt 0:00:04]} 28. Nxg6 {[%emt 0:00:03]} Qxg6 {[%emt 0:00:01]} 29. d5 {[%emt 0:00:03]} 1-0

[Event "RUS-ch Men Blitz 2019"]
[Site "Sochi"]
[Date "2019.10.17"]
[Round "6.16"]
[White "Lysyj, Igor"]
[Black "Keosidi, Konstantin"]
[Result "1-0"]
[ECO "E97"]
[WhiteElo "2596"]
[BlackElo "2400"]
[Annotator "RC"]
[PlyCount "123"]
[EventDate "2019.10.17"]
[EventType "swiss"]
[EventCountry "RUS"]
[SourceTitle "playchess.com"]
[Source "ChessBase"]
[SourceQuality "1"]
[TimeControl "180+2"]

1. d4 {[%emt 0:00:00]} Nf6 {[%emt 0:00:00]} 2. c4 {[%emt 0:00:00]} g6 {[%emt 0:00:00]} 3. Nc3 {[%emt 0:00:01]} Bg7 {[%emt 0:00:00]} 4. e4 {[%emt 0:00:01]} d6 {[%emt 0:00:00]} 5. Nf3 {[%emt 0:00:01]} O-O {[%emt 0:00:04]} 6. Be2 {[%emt 0:00:01]} e5 {[%emt 0:00:05]} 7. O-O {[%emt 0:00:02]} Nc6 {[%emt 0:00:01]} 8. d5 {[%emt 0:00:02]} Ne7 {[%emt 0:00:01]} 9. Bg5 {[%emt 0:00:02]} h6 {[%emt 0:00:08]} 10. Bd2 {[%emt 0:00:01]} Nh5 {[%emt 0:00:11]} 11. Re1 {[%emt 0:00:04]} f5 {[%emt 0:00:21]} 12. Nh4 {[%emt 0:00:13]} Nf6 {[%emt 0:00:11]} 13. exf5 {[%emt 0:00:04]} gxf5 {[%emt 0:00:03]} 14. g3 {[%emt 0:00:03]} c6 {[%emt 0:00:12]} 15. Qb3 {[%emt 0:00:06]} cxd5 {[%emt 0:00:10]} 16. cxd5 {[%emt 0:00:03]} b6 {[%emt 0:00:01]} 17. Rad1 {[%emt 0:00:32]} Bb7 {[%emt 0:00:20]} 18. Be3 {[%emt 0:00:08]} Nd7 {[%emt 0:00:08]} 19. Bf1 {[%emt 0:00:10]} Rc8 {[%emt 0:00:16]} 20. Bh3 {[%emt 0:00:14]} Nc5 {[%emt 0:00:02]} 21. Qc2 {[%emt 0:00:05]} e4 {[%emt 0:00:13]} 22. Bf1 {[%emt 0:00:18]} Qe8 {[%emt 0:00:08]} 23. Qd2 {[%emt 0:00:07]} Kh7 {[%emt 0:00:02]} 24. Nb5 {[%emt 0:00:07]} Qd7 {[%emt 0:00:08]} 25. Nc3 {[%emt 0:00:14]} Qe8 {[%emt 0:00:09]} 26. Ng2 {[%emt 0:00:03]} Ng6 {[%emt 0:00:04]} 27. Nb5 {[%emt 0:00:23]} Qe7 {[%emt 0:00:08]} 28. Nxa7 {[%emt 0:00:03]} Ra8 {[%emt 0:00:02]} 29. Nc6 {[%emt 0:00:01]} Qf7 {[%emt 0:00:12]} 30. b4 {[%emt 0:00:03]} Nd7 {[%emt 0:00:01]} 31. Nf4 {[%emt 0:00:04]} Nge5 {[%emt 0:00:01]} 32. Nxe5 {[%emt 0:00:05]} Nxe5 {[%emt 0:00:00]} 33. Be2 {[%emt 0:00:03]} b5 {[%emt 0:00:01]} 34. h4 {[%emt 0:00:07]} Ra3 {[%emt 0:00:08]} 35. Rc1 {[%emt 0:00:01]} Rfa8 {[%emt 0:00:01]} 36. Rc2 {[%emt 0:00:01]} Nc4 {[%emt 0:00:08]} 37. Bxc4 bxc4 38. Rxc4 {[%emt 0:00:09]} Rxa2 {[%emt 0:00:01]} 39. Rc2 {[%emt 0:00:00]} Rxc2 {[%emt 0:00:12]} 40. Qxc2 {[%emt 0:00:02]} Bxd5 {[%emt 0:00:01]} 41. Qd2 {[%emt 0:00:09]} Bc4 {[%emt 0:00:11]} 42. Qxd6 {[%emt 0:00:03]} Bf8 {[%emt 0:00:01]} 43. Qb6 {[%emt 0:00:04]} Bg7 {[%emt 0:00:06]} 44. h5 {[%emt 0:00:03]} Ra1 {[%emt 0:00:02]} 45. Rxa1 {[%emt 0:00:02]} Bxa1 {[%emt 0:00:01]} 46. Bd4 {[%emt 0:00:06]} Bxd4 47. Qxd4 Bb5 48. Qd5 {[%emt 0:00:02]} Qxd5 {[%emt 0:00:13]} 49. Nxd5 {[%emt 0:00:02]} Kg7 {[%emt 0:00:02]} 50. Nc7 {[%emt 0:00:02]} Bc6 {[%emt 0:00:03]} 51. b5 {[%emt 0:00:02]} Bb7 {[%emt 0:00:01]} 52. Kf1 {[%emt 0:00:02]} Kf7 {[%emt 0:00:02]} 53. Ke2 {[%emt 0:00:01]} Ke7 {[%emt 0:00:02]} 54. Ke3 {[%emt 0:00:02]} Kd6 {[%emt 0:00:03]} 55. Ne8+ {[%emt 0:00:03]} Ke7 {[%emt 0:00:02]} 56. Nc7 {[%emt 0:00:02]} Kd6 {[%emt 0:00:01]} 57. b6 {[%emt 0:00:01]} Kc6 {[%emt 0:00:04]} 58. Ne8 {[%emt 0:00:02]} Kxb6 {[%emt 0:00:04]} 59. Nd6 {[%emt 0:00:01]} Bd5 {[%emt 0:00:02]} 60. Nxf5 {[%emt 0:00:03]} Bf7 {[%emt 0:00:01]} 61. g4 {[%emt 0:00:01]} Be6 {[%emt 0:00:01]} 62. Nxh6 {[%emt 0:00:02]} 1-0